bitfinex-derivatives/quotes_SOLF0:USTF0_20240911
["timestamp","ask_amount","ask_price","bid_price","bid_amount"]
[1726061407554,2.6591,132.35,132.29,3.7795]
[1726061407956,18.16,132.39,132.3,3.7793]
[1726061408156,2.7457,132.38,132.28,18.16]
[1726061408356,2.7457,132.38,132.3,18.16]
[1726061408556,2.7457,132.38,132.2,173.94354132]
[1726061408557,18.16,132.37,132.2,173.94354132]
[1726061408763,18.16,132.37,132.27,18.16]
[1726061408956,2.7457,132.38,132.29,18.16]
[1726061409557,2.7457,132.38,132.27,18.16]
[1726061409758,2.7457,132.38,132.2,192.10354132]
[1726061409759,18.16,132.35,132.2,192.10354132]
[1726061409960,2.7457,132.38,132.28,18.16]
[1726061410154,2.7457,132.38,132.3,18.16]
[1726061410463,2.7457,132.38,132.2,173.94354132]
[1726061410766,18.16,132.37,132.28,3.78]
[1726061411165,3.7787,132.33,132.27,3.7802]
[1726061411355,3.78760393,132.34,132.26,18.16]
[1726061411665,3.7785,132.34,132.27,3.7801]
[1726061411865,2.7457,132.38,132.26,18.16]
[1726061411866,18.16,132.37,132.26,18.16]
[1726061412061,3.6919879,132.36,132.28,18.16]
[1726061412268,3.7783,132.34,132.28,21.9399]
[1726061412576,3.76795162,132.35,132.26,18.16]
[1726061412867,1.3949,132.34,132.26,18.16]
[1726061413165,2.7457,132.38,132.28,18.16]
[1726061413362,20.9057,132.38,132.28,18.16]
[1726061413560,18.16,132.35,132.2,173.94354132]
[1726061413762,22.00298457,132.35,132.23,18.16]
[1726061414161,3.7793,132.31,132.23,18.16]
[1726061414469,3.84298457,132.35,132.23,18.16]
[1726061414655,18.16,132.34,132.23,18.16]
[1726061414861,2.7598,132.33,132.23,18.16]
[1726061415072,3.7791,132.32,132.26,3.7805]
[1726061415456,2.7598,132.33,132.23,18.16]
[1726061415661,5.174,132.32,132.25,3.7806]
[1726061415861,5.174,132.32,132.23,18.16]
[1726061416169,1.3949,132.32,132.23,18.16]
[1726061416362,3.7793,132.31,132.25,3.7808]
[1726061416568,1.3949,132.32,132.23,18.16]
[1726061416767,19.5549,132.32,132.21,18.16]
[1726061417065,18.16,132.28,132.18,18.16]
[1726061417270,18.16,132.28,132.18,21.88070164]
[1726061417460,6.3742112,132.27,132.18,21.88070164]
[1726061417870,6.3742112,132.27,132.21,3.7818]
[1726061417871,2.6399,132.27,132.21,3.7818]
[1726061418166,2.6399,132.27,132.18,18.16]
[1726061418368,6.46229528,132.27,132.14,5.97202426]
[1726061418566,2.6399,132.27,132.15,1.38962861]
[1726061418779,3.77589596,132.26,132.18,18.16]
[1726061418979,27.08929596,132.26,132.17,3.7829]
[1726061419162,1.3726,132.26,132.08,6.94213591]
[1726061419467,5.0649484,132.26,132.11,3.7848]
[1726061419666,1.3726,132.26,132.09,1.38995065]
[1726061420071,1.3726,132.26,132.13,3.7842]
[1726061420072,18.16,132.21,132.13,3.7842]
[1726061420260,5.20585764,132.26,132.14,18.16]
[1726061420261,1.405,132.2,132.14,18.16]
[1726061420459,1.405,132.2,132.15,18.16]
[1726061420765,3.76173175,132.22,132.15,18.16]
[1726061420970,3.76173175,132.22,132.09,1.38995065]
[1726061421168,3.76173175,132.22,132.1,1.39033406]
[1726061421364,21.92173175,132.22,132.13,18.16]
[1726061421565,21.92173175,132.22,132.09,1.38995065]
[1726061421566,18.16,132.22,132.16,3.7832]
[1726061421774,18.16,132.22,132.12,18.16]
[1726061421976,21.8729125,132.22,132.14,18.16]
[1726061422277,21.8729125,132.22,132.14,21.9438]
[1726061422474,3.7129125,132.22,132.11,18.16]
[1726061422767,18.16,132.22,132.12,18.16]
[1726061423370,18.16,132.22,132.09,1.38995065]
[1726061423566,18.16,132.17,132.09,1.38995065]
[1726061423769,4.0378,132.16,132.09,5.17535065]
[1726061424072,18.16,132.15,132.09,1.38995065]
[1726061424476,21.9437,132.15,132.09,1.38995065]
[1726061424672,18.16,132.13,131.95,227.0]
[1726061424877,18.16,132.11,132.03,3.7871]
[1726061425078,18.16,132.08,131.96,1.3701]
[1726061425378,18.16,132.06,131.91,5.99627438]
[1726061425573,18.16,132.06,131.97,1.39143079]
[1726061425771,18.16,132.06,131.96,18.16]
[1726061425974,2.6448,132.07,131.97,3.71146125]
[1726061426177,2.6448,132.07,131.91,1.3701]
[1726061426381,2.6448,132.07,131.96,18.16]
[1726061426382,18.16,132.06,131.96,18.16]
[1726061426685,18.16,132.06,131.91,1.3701]
[1726061426876,18.16,132.02,131.91,1.3701]
[1726061427080,18.16,132.02,131.92,1.39202934]
[1726061427285,18.16,131.98,131.85,230.69820468]
[1726061427482,18.16,131.95,131.91,6.00311627]
[1726061427787,2.6448,131.97,131.91,6.00311627]
[1726061428086,18.16,131.93,131.91,3.85801627]
[1726061428280,18.16,131.92,131.82,18.16]
[1726061428482,18.16,131.93,131.82,18.16]
[1726061428680,18.16,131.93,131.83,1.39347884]
[1726061428984,21.9501,131.93,131.83,1.39347884]
[1726061429285,18.16,131.92,131.78,1.3701]
[1726061429485,18.16,131.89,131.81,3.7932]
[1726061429690,18.16,131.87,131.78,18.16]
[1726061429988,18.16,131.87,131.8,3.7937]
[1726061430179,29.14,131.85,131.73,227.0]
[1726061430381,29.14,131.87,131.74,30.5339601]
[1726061430686,1.3948,131.88,131.79,29.14]
[1726061430888,1.3948,131.88,131.8,1.3939601]
[1726061431281,29.14,131.83,131.8,1.3939601]
[1726061431489,29.14,131.87,131.74,29.14]
[1726061431686,29.14,131.87,131.75,1.39416596]
[1726061431881,29.14,131.87,131.76,30.53416596]
[1726061432080,1.3732,131.93,131.85,29.14]
[1726061432286,1.3898,131.96,131.87,29.14]
[1726061432787,29.14,131.93,131.81,2.7604]
[1726061432993,29.14,131.93,131.82,1.39363211]
[1726061433380,29.14,131.93,131.83,1.39363353]
[1726061433587,29.14,131.93,131.8,29.14]
[1726061433890,29.14,131.91,131.81,1.39369896]
[1726061434091,3.73549708,131.9,131.79,1.39369896]
[1726061434294,29.14,131.89,131.8,1.39375612]
[1726061434477,29.14,131.87,131.79,1.39375612]
[1726061434681,29.14,131.85,131.74,29.14]
[1726061434991,1.3103,131.86,131.76,29.14]
[1726061435189,1.3103,131.86,131.79,29.14]
[1726061436093,1.3103,131.86,131.77,29.14]
[1726061436292,1.3103,131.86,131.74,29.14]
[1726061436483,1.3103,131.86,131.75,1.39393083]
[1726061436683,5.19268865,131.86,131.75,1.39393083]
[1726061436988,1.3103,131.86,131.78,29.14]
[1726061437177,1.3103,131.86,131.79,1.39393083]
[1726061437383,1.3103,131.86,131.79,3.7937]
[1726061437585,1.3103,131.86,131.76,29.14]
[1726061437778,1.3103,131.86,131.77,1.39380452]
[1726061437986,1.3103,131.86,131.8,3.7934]
[1726061438381,1.3103,131.86,131.76,29.14]
[1726061438691,1.3103,131.86,131.77,1.39391435]
[1726061438889,29.14,131.88,131.77,1.39391435]
[1726061439090,29.14,131.9,131.79,29.14]
[1726061439391,1.323,131.92,131.85,29.14]
[1726061439689,29.14,131.94,131.85,29.14]
[1726061440188,1.323,131.96,131.85,29.14]
[1726061440388,30.463,131.96,131.85,29.14]
[1726061440592,29.14,131.94,131.83,29.14]
[1726061440795,30.463,131.96,131.85,29.14]
[1726061441190,30.463,131.96,131.87,29.14]
[1726061441191,1.323,131.96,131.87,29.14]
[1726061441483,29.14,131.94,131.82,29.14]
[1726061441688,29.14,131.92,131.81,1.4138]
[1726061441984,29.14,131.9,131.81,1.4138]
[1726061442181,1.323,131.96,131.81,1.4138]
[1726061442381,29.14,131.95,131.82,29.14]
[1726061442686,29.14,131.95,131.83,1.39358645]
[1726061442892,29.14,131.95,131.9,3.7904]
[1726061443086,1.323,131.96,131.85,29.14]
[1726061443285,3.7898,131.93,131.86,3.7914]
[1726061443591,1.323,131.96,131.86,1.39318023]
[1726061443592,29.14,131.95,131.86,1.39318023]
[1726061443796,1.323,131.96,131.85,29.14]
[1726061444091,30.5324,131.99,131.87,29.14]
[1726061444297,30.5324,131.99,131.87,30.502]
[1726061444487,29.14,131.97,131.88,1.39304715]
[1726061444797,29.14,131.95,131.85,29.14]
[1726061444989,29.14,131.95,131.88,3.7911]
[1726061445181,29.14,131.97,131.85,29.14]
[1726061445386,30.5324,131.99,131.87,29.14]
[1726061445695,29.14,132.01,131.9,29.14]
[1726061446092,29.14,131.99,131.89,1.3092]
[1726061446392,29.14,131.97,131.86,29.14]
[1726061446585,29.14,131.97,131.84,29.14]
[1726061446783,29.14,131.94,131.84,29.14]
[1726061447095,29.14,131.92,131.85,1.39322678]
[1726061447591,29.14,131.92,131.83,1.411]
[1726061447592,29.14,131.92,131.84,1.39322678]
[1726061447793,29.14,131.92,131.83,1.411]
[1726061447990,29.14,131.94,131.84,29.14]
[1726061448186,29.14,131.94,131.89,3.7908]
[1726061448385,4.0338,131.96,131.89,3.7908]
[1726061448590,7.8227,131.96,131.89,3.7908]
[1726061448787,4.0338,131.96,131.84,29.14]
[1726061449193,4.0338,131.96,131.87,3.7911]
[1726061449194,3.7896,131.94,131.87,3.7911]
[1726061449402,4.0338,131.96,131.85,1.39317513]
[1726061449592,88.77895082,132.07,131.88,1.39317513]
[1726061449901,88.77895082,132.07,131.89,1.39317513]
[1726061449902,29.14,132.0,131.89,1.39317513]
[1726061450599,29.14,132.0,131.86,29.14]
[1726061450893,29.14,132.0,131.89,29.14]
[1726061451099,29.14,132.0,131.87,1.39305404]
[1726061451100,29.14,131.98,131.87,29.14]
[1726061451299,29.14,131.96,131.88,1.39309361]
[1726061451497,29.14,131.96,131.83,1.411]
[1726061451498,29.14,131.93,131.83,1.411]
[1726061451695,2.7461,132.01,131.89,29.14]
[1726061451887,2.7461,132.01,131.92,29.14]
[1726061452298,6.5336,132.01,131.93,1.3925818]
[1726061452693,1.3429,132.01,131.94,1.39251011]
[1726061452896,1.3429,132.01,131.92,29.14]
[1726061453097,1.3429,132.01,131.93,1.3924727]
[1726061453599,5.1303,132.01,131.94,3.7891]
[1726061453796,1.3554,132.1,131.94,29.14]
[1726061453995,4.08,132.1,131.99,29.14]
[1726061454300,1.3326,132.1,132.04,29.14]
[1726061454997,5.1174,132.1,132.02,29.14]
[1726061455202,1.3326,132.1,132.02,29.14]
[1726061455500,1.3326,132.1,132.03,5.17818797]
[1726061455696,1.3326,132.1,132.02,29.14]
[1726061455903,1.3326,132.1,131.99,29.14]
[1726061456100,1.3326,132.1,132.0,1.39174182]
[1726061456302,1.3326,132.1,132.01,29.14]
[1726061456494,1.3326,132.1,132.02,1.39174182]
[1726061456693,3.7857,132.07,131.99,29.14]
[1726061456903,1.3326,132.1,131.99,29.14]
[1726061457097,1.3729,132.09,131.99,29.14]
[1726061457406,30.5129,132.09,131.99,29.14]
[1726061457707,1.3729,132.09,132.0,1.39187877]
[1726061458307,1.3729,132.09,131.98,47.26]
[1726061458511,47.26,132.05,131.96,170.79508249]
[1726061458707,51.10629361,132.05,131.96,170.79508249]
[1726061459006,47.26,132.05,131.96,170.79508249]
[1726061459512,3.7868,132.03,131.96,170.79508249]
[1726061459706,47.26,132.03,131.96,170.79508249]
[1726061460008,1.3524,132.02,131.96,170.79508249]
[1726061460402,47.26,132.01,131.87,47.26]
[1726061460602,48.6479,132.01,131.9,47.26]
[1726061460797,1.3879,132.01,131.88,1.39260239]
[1726061461000,1.3524,132.02,131.92,47.26]
[1726061461205,1.3524,132.02,131.94,47.26]
[1726061461604,48.6479,132.07,131.95,1.39260239]
[1726061461807,53.71866923,132.07,131.95,1.39260239]
[1726061462004,50.0202,132.07,131.95,1.39260239]
[1726061462211,2.7602,132.07,131.98,47.26]
[1726061463109,3.7862,132.06,131.98,47.26]
[1726061463704,3.7876,132.01,131.93,51.0496]
[1726061463905,47.26,132.04,131.94,1.3923688]
[1726061464308,3.86670203,132.03,131.95,1.3923688]
[1726061464611,47.26,132.02,131.91,1.3509]
[1726061464806,47.26,132.0,131.92,1.39241568]
[1726061465012,47.26,131.98,131.88,1.39241568]
[1726061465310,4.1185,131.99,131.89,47.26]
[1726061465512,4.1185,131.99,131.9,1.39279261]
[1726061465705,4.1185,131.99,131.91,1.39279261]
[1726061466012,4.1185,131.99,131.82,47.26]
[1726061466013,47.26,131.94,131.82,47.26]
[1726061466208,4.1185,131.99,131.84,47.26]
[1726061466209,47.26,131.96,131.84,47.26]
[1726061466411,4.1185,131.99,131.85,1.39308874]
[1726061466412,47.26,131.92,131.85,1.39308874]
[1726061466711,2.7265,131.91,131.79,47.26]
[1726061466909,2.7265,131.91,131.81,3.7929]
[1726061466910,3.7913,131.88,131.81,3.7929]
[1726061467103,4.1185,131.91,131.8,1.39349874]
[1726061467610,2.7265,131.91,131.82,1.39349874]
[1726061467807,2.7265,131.91,131.81,48.65349874]
[1726061468006,6.5169,131.91,131.81,48.65349874]
[1726061468204,2.7265,131.91,131.83,1.39349874]
[1726061468406,1.3684,131.91,131.83,47.26]
[1726061468600,1.3684,131.91,131.86,3.7915]
[1726061468806,1.3684,131.91,131.83,47.26]
[1726061469312,1.3684,131.91,131.87,3.7912]
[1726061469507,47.26,131.94,131.83,47.26]
[1726061469699,47.26,131.94,131.84,1.39332863]
[1726061469901,47.26,131.91,131.82,1.39332863]
[1726061470206,47.26,131.91,131.79,47.26]
[1726061470207,47.26,131.89,131.79,47.26]
[1726061470410,1.3501,131.88,131.8,1.39370801]
[1726061470612,47.26,131.87,131.81,1.3937278]
[1726061470810,47.26,131.87,131.78,1.3937278]
[1726061471117,1.3501,131.88,131.79,47.26]
[1726061471411,1.3501,131.88,131.8,1.39358758]
[1726061471614,1.3501,131.88,131.78,1.39358758]
[1726061471912,1.3501,131.88,131.8,3.7933]
[1726061472106,1.3501,131.88,131.64,7.5957]
[1726061472411,47.26,131.85,131.72,47.26]
[1726061472610,47.26,131.83,131.72,47.26]
[1726061472808,47.26,131.83,131.73,1.39391378]
[1726061473021,47.26,131.83,131.74,1.39391378]
[1726061473312,47.26,131.8,131.75,1.39391378]
[1726061473506,47.26,131.87,131.61,3.17161175]
[1726061473507,47.26,131.76,131.63,47.26]
[1726061473706,47.26,131.74,131.63,47.26]
[1726061473924,4.2089,131.79,131.64,1.39478258]
[1726061473925,47.26,131.76,131.64,1.39478258]
[1726061474215,47.26,131.76,131.65,1.39478258]
[1726061474416,47.26,131.76,131.66,1.39478258]
[1726061474611,56.83,131.75,131.67,1.39478258]
[1726061474810,56.83,131.75,131.67,1.39496757]
[1726061475010,56.83,131.75,131.68,1.39496757]
[1726061475310,56.83,131.75,131.69,1.39496757]
[1726061475512,56.83,131.75,131.63,3.83703747]
[1726061475710,56.83,131.75,131.64,58.224873]
[1726061475909,56.83,131.78,131.66,56.83]
[1726061476112,56.83,131.78,131.73,3.7954]
[1726061476304,4.2089,131.79,131.69,56.83]
[1726061476503,4.2089,131.79,131.7,1.39469888]
[1726061476707,1.3762,131.79,131.7,1.39469888]
[1726061476920,56.83,131.82,131.71,1.39469888]
[1726061477110,56.83,131.81,131.72,1.39469888]
[1726061477305,56.83,131.81,131.7,56.83]
[1726061477514,56.83,131.81,131.71,1.39450916]
[1726061477711,56.83,131.79,131.71,1.39450916]
[1726061477907,56.83,131.79,131.69,1.39465612]
[1726061478113,56.83,131.79,131.7,1.3947291]
[1726061478418,60.6238,131.79,131.68,56.83]
[1726061478721,56.83,131.77,131.69,1.39486275]
[1726061478919,56.83,131.77,131.67,1.4278]
[1726061478920,1.336,131.78,131.68,1.39496069]
[1726061479121,1.336,131.78,131.67,58.2578]
[1726061479323,1.336,131.78,131.68,1.39489741]
[1726061480016,2.6781,131.78,131.73,3.7953]
[1726061480213,2.6781,131.78,131.67,58.2578]
[1726061480414,2.6781,131.78,131.68,1.39484167]
[1726061481218,1.3421,131.78,131.69,56.83]
[1726061481422,58.2455,131.84,131.72,56.83]
[1726061481624,59.5876,131.84,131.73,1.39484167]
[1726061481823,59.5876,131.84,131.78,3.794]
[1726061482021,2.7576,131.84,131.74,56.83]
[1726061482519,56.83,131.83,131.72,56.83]
[1726061482723,2.7576,131.84,131.72,56.83]
[1726061482930,2.7576,131.84,131.74,56.83]
[1726061483221,227.86566315,131.94,131.78,56.83]
[1726061483222,56.83,131.9,131.78,56.83]
[1726061483417,56.83,131.88,131.76,1.3274]
[1726061483618,56.83,131.86,131.73,56.83]
[1726061483821,56.83,131.84,131.71,56.83]
[1726061484016,2.6842,131.83,131.71,56.83]
[1726061484215,2.6842,131.83,131.72,1.39434733]
[1726061484421,6.4768,131.83,131.75,3.7947]
[1726061484721,2.6842,131.83,131.71,56.83]
[1726061484919,2.6842,131.83,131.72,1.3945061]
[1726061485225,56.83,131.81,131.67,2.6578]
[1726061485522,56.83,131.79,131.72,3.7954]
[1726061485825,56.83,131.79,131.68,56.83]
[1726061486128,3.7943,131.77,131.68,56.83]
[1726061486529,3.7941,131.78,131.68,56.83]
[1726061486821,56.83,131.79,131.68,56.83]
[1726061487429,56.83,131.79,131.69,1.39481061]
[1726061487625,2.6842,131.83,131.72,56.83]
[1726061488223,3.794,131.79,131.7,56.83]
[1726061488424,56.83,131.82,131.7,56.83]
[1726061488826,3.7942,131.78,131.7,56.83]
[1726061489531,56.83,131.79,131.67,2.6578]
[1726061489725,56.83,131.77,131.67,2.6578]
[1726061490227,1.3905,131.78,131.68,1.39492177]
[1726061490423,1.3905,131.78,131.67,2.6578]
[1726061490615,1.3905,131.78,131.68,58.22488988]
[1726061491021,1.3905,131.78,131.67,2.6578]
[1726061491022,3.7951,131.74,131.67,2.6578]
[1726061491529,3.7951,131.74,131.68,3.7967]
[1726061491826,56.83,131.75,131.65,56.83]
[1726061492022,1.3905,131.78,131.66,1.39493008]
[1726061492023,56.83,131.73,131.66,1.39493008]
[1726061492227,1.4268,131.72,131.63,3.798]
[1726061492425,3.7968,131.69,131.64,1.39529551]
[1726061492626,56.83,131.71,131.62,1.3958]
[1726061492830,56.83,131.71,131.6,56.83]
[1726061492831,56.83,131.71,131.63,1.39539719]
[1726061493025,56.83,131.68,131.56,227.0]
[1726061493231,1.3105,131.7,131.58,3.7996]
[1726061493232,56.83,131.66,131.58,3.7996]
[1726061493425,3.7983,131.64,131.59,1.39572519]
[1726061493624,56.83,131.66,131.57,3.7998]
[1726061493833,1.4118,131.65,131.58,1.39581684]
[1726061494222,1.4118,131.65,131.57,56.83]
[1726061494423,1.4118,131.65,131.58,1.39581684]
[1726061494729,56.83,131.71,131.59,56.83]
[1726061494929,1.4268,131.72,131.61,56.83]
[1726061495123,1.4268,131.72,131.62,1.3957647]
[1726061495633,1.4118,131.73,131.64,56.83]
[1726061495833,280.83,131.77,131.66,56.83]
[1726061496131,224.0,131.77,131.68,56.83]
[1726061496332,2.7018,131.78,131.72,3.7957]
[1726061496524,2.7018,131.78,131.68,56.83]
[1726061496828,58.1982,131.84,131.73,56.83]
[1726061497130,60.9,131.84,131.73,56.83]
[1726061497626,2.7018,131.84,131.73,56.83]
[1726061497828,59.5318,131.84,131.69,1.294]
[1726061498026,59.5318,131.84,131.7,1.39454413]
[1726061498027,56.83,131.82,131.7,1.39454413]
[1726061498219,56.83,131.79,131.69,1.294]
[1726061498423,56.83,131.77,131.66,56.83]
[1726061498625,1.3038,131.76,131.67,1.3950386]
[1726061498930,1.3038,131.76,131.64,56.83]
[1726061499120,1.3038,131.76,131.64,58.1209]
[1726061499319,56.83,131.77,131.7,3.796]
[1726061499525,3.7942,131.78,131.66,56.83]
[1726061499726,3.7942,131.78,131.67,1.39494627]
[1726061500032,56.83,131.8,131.67,1.39494627]
[1726061500235,56.83,131.76,131.67,1.39494627]
[1726061500434,2.7043,131.75,131.64,58.1209]
[1726061500637,3.7953,131.74,131.65,1.3951584]
[1726061500933,2.7043,131.75,131.65,1.3951584]
[1726061501334,56.83,131.8,131.67,56.83]
[1726061501531,56.83,131.8,131.64,1.2909]
[1726061501532,56.83,131.8,131.69,56.83]
[1726061501735,2.7573,131.82,131.72,56.83]
[1726061501941,2.7573,131.82,131.73,2.6667]
[1726061502127,1.4124,131.82,131.73,4.06123722]
[1726061502434,1.4124,131.82,131.74,1.3944322]
[1726061503333,1.4124,131.82,131.78,3.7937]
[1726061503631,2.7573,131.86,131.74,56.83]
[1726061505323,3.7922,131.85,131.77,3.7942]
[1726061505636,2.7573,131.86,131.74,56.83]
[1726061505935,56.83,131.85,131.74,3.7951]
[1726061506332,56.83,131.82,131.73,2.6667]
[1726061506537,56.83,131.82,131.73,1.3195]
[1726061507340,56.83,131.8,131.7,1.3927]
[1726061508234,56.83,131.82,131.71,1.39476727]
[1726061508532,2.7573,131.86,131.71,1.39476727]
[1726061508533,56.83,131.85,131.72,56.83]
[1726061508829,56.83,131.85,131.73,1.39476727]
[1726061510037,2.7573,131.86,131.74,56.83]
[1726061510340,2.7573,131.86,131.75,1.39431158]
[1726061510631,2.7573,131.86,131.77,56.83]
[1726061510833,3.7923,131.84,131.77,60.6242]
[1726061511032,3.7923,131.84,131.7,1.3927]
[1726061511033,2.7573,131.86,131.74,56.83]
[1726061511236,56.83,131.83,131.72,56.83]
[1726061511435,3.7939,131.79,131.72,3.7955]
[1726061511631,1.4128,131.82,131.7,58.2227]
[1726061511935,1.4128,131.82,131.71,1.39463677]
[1726061512132,56.83,131.8,131.68,58.2254]
[1726061512336,1.4084,131.79,131.69,1.39491722]
[1726061512539,56.83,131.78,131.69,1.39491722]
[1726061512836,56.83,131.78,131.68,58.2254]
[1726061512837,58.1715,131.78,131.68,1.3954]
[1726061513037,1.3415,131.78,131.69,1.3948926]
[1726061513628,3.7945,131.77,131.69,1.3948926]
[1726061513830,3.7945,131.77,131.7,3.7962]
[1726061514136,3.7948,131.75,131.68,1.3954]
[1726061514437,3.7948,131.75,131.68,5.192]
[1726061514639,56.83,131.76,131.68,1.3954]
[1726061514826,3.7951,131.74,131.68,1.3954]
[1726061515329,56.83,131.76,131.66,56.83]
[1726061515530,56.83,131.76,131.63,56.83]
[1726061515728,1.3415,131.78,131.66,56.83]
[1726061515944,58.1715,131.78,131.68,56.83]
[1726061516439,3.7946,131.76,131.7,3.7962]
[1726061516642,58.1715,131.78,131.7,3.7962]
[1726061517029,58.1715,131.78,131.68,56.83]
[1726061517430,1.3415,131.78,131.68,56.83]
[1726061517634,1.3415,131.78,131.69,1.382]
[1726061517835,56.83,131.87,131.7,56.83]
[1726061517836,58.2428,131.82,131.7,56.83]
[1726061518037,58.2428,131.82,131.7,58.2342]
[1726061518038,3.7936,131.8,131.7,58.2342]
[1726061518338,58.2428,131.82,131.7,58.2342]
[1726061518539,1.4128,131.82,131.73,56.83]
[1726061518735,1.4128,131.82,131.76,3.7943]
[1726061519134,3.7933,131.81,131.73,56.83]
[1726061519330,58.2428,131.82,131.71,56.83]
[1726061519841,3.7939,131.79,131.73,3.7953]
[1726061520041,58.2428,131.82,131.71,56.83]
[1726061520542,56.83,131.85,131.73,56.83]
[1726061520839,2.7246,131.86,131.75,56.83]
[1726061521034,3.7921,131.85,131.79,3.7936]
[1726061521237,3.7921,131.85,131.75,56.83]
[1726061521238,2.7246,131.86,131.75,56.83]
[1726061521539,3.7921,131.85,131.8,3.7934]
[1726061521738,2.7246,131.86,131.76,1.3771]
[1726061522340,56.83,131.85,131.73,56.83]
[1726061522537,56.83,131.83,131.73,56.83]
[1726061522739,60.690042,131.83,131.7,58.2342]
[1726061522936,56.83,131.8,131.7,1.4042]
[1726061523137,3.7947,131.76,131.7,5.2003]
[1726061523439,56.83,131.75,131.63,56.83]
[1726061523639,56.83,131.73,131.62,1.3273]
[1726061524037,1.3215,131.72,131.62,1.3273]
[1726061524237,1.3215,131.72,131.63,56.83]
[1726061524441,1.3215,131.72,131.62,1.3273]
[1726061524743,56.83,131.7,131.62,1.3273]
[1726061525041,56.83,131.7,131.59,228.08585026]
[1726061525239,3.7974,131.67,131.59,228.08585026]
[1726061525434,56.83,131.7,131.59,228.08585026]
[1726061525743,56.83,131.7,131.6,1.39555004]
[1726061526042,56.83,131.68,131.59,171.25585026]
[1726061526637,56.83,131.66,131.59,171.25585026]
[1726061527049,60.6275,131.66,131.59,171.25585026]
[1726061527340,56.83,131.66,131.59,171.25585026]
[1726061527553,56.83,131.66,131.59,175.05505026]
[1726061527839,56.83,131.68,131.59,228.08585026]
[1726061528046,2.8097,131.71,131.66,3.7971]
[1726061528347,1.3215,131.72,131.61,56.83]
[1726061528545,1.3215,131.72,131.63,56.83]
[1726061528738,1.3215,131.72,131.64,1.3519]
[1726061528940,56.83,131.75,131.64,1.3519]
[1726061529149,1.3142,131.76,131.72,3.7957]
[1726061529336,1.3142,131.76,131.68,56.83]
[1726061529537,1.3142,131.76,131.66,56.83]
[1726061529737,56.83,131.75,131.64,58.1819]
[1726061529943,1.3142,131.76,131.64,58.1819]
[1726061530147,5.1088,131.76,131.69,3.7963]
[1726061530348,1.3142,131.76,131.64,58.1819]
[1726061530644,56.83,131.75,131.64,58.1819]
[1726061531344,3.7952,131.74,131.64,58.1819]
[1726061531543,58.1442,131.76,131.64,58.1819]
[1726061531938,56.83,131.73,131.64,1.3519]
[1726061532340,56.83,131.73,131.6,58.1476]
[1726061533144,56.83,131.71,131.6,58.1476]
[1726061533338,3.7965,131.7,131.64,3.7978]
[1726061533546,56.83,131.71,131.6,58.1476]
[1726061533740,1.3142,131.76,131.62,56.83]
[1726061533741,56.83,131.73,131.62,56.83]
[1726061534143,56.83,131.75,131.64,56.83]
[1726061534543,1.3142,131.76,131.66,56.83]